[Event "79th ARM-ch 1st League 2018"]
[Site "Yerevan"]
[Date "2018.08.09"]
[Round "1"]
[White "Harutyunian, Tigran K"]
[Black "Gharibyan, Mamikon"]
[Result "1/2-1/2"]
[ECO "D31"]
[WhiteElo "2504"]
[BlackElo "2341"]
[Annotator "ChessBase"]
[PlyCount "50"]
[EventDate "2018.08.09"]
[EventType "tourn"]
[EventCountry "ARM"]
[SourceTitle "playchess.com"]
[Source "ChessBase"]
[SourceQuality "1"]
[TimeControl "40/5400+30:1800+30"]

1. c4 {[%emt 0:00:00]} e6 {[%emt 0:01:00]} 2. Nc3 {[%emt 0:01:45]} d5 {[%emt 0:01:06]} 3. d4 {[%emt 0:00:11]} a6 {[%emt 0:03:45]} 4. cxd5 {[%emt 0:07:51]} exd5 {[%emt 0:00:13]} 5. Bf4 {[%emt 0:00:08]} Nf6 {[%emt 0:01:12]} 6. e3 {[%emt 0:00:18]} Bd6 {[%emt 0:02:39]} 7. Bxd6 {[%emt 0:04:24]} Qxd6 {[%emt 0:00:10]} 8. Bd3 {[%emt 0:00:05]} O-O {[%emt 0:01:25]} 9. h3 {[%emt 0:00:45]} b6 {[%emt 0:12:32]} 10. Nge2 {[%emt 0:10:53]} c5 {[%emt 0:03:07]} 11. dxc5 {[%emt 0:05:29]} bxc5 {[%emt 0:01:33]} 12. O-O {[%emt 0:00:06]} Be6 {[%emt 0:02:55]} 13. Rc1 {[%emt 0:01:29]} Nbd7 {[%emt 0:01:01]} 14. Bb1 {[%emt 0:01:45]} Rfd8 {[%emt 0:12:04]} 15. Na4 {[%emt 0:04:20]} Rac8 {[%emt 0:06:46]} 16. e4 {[%emt 0:03:24]} Qb8 {[%emt 0:07:27]} 17. exd5 {[%emt 0:00:53]} Bxd5 {[%emt 0:01:51]} 18. Nac3 {[%emt 0:16:49]} Bc6 {[%emt 0:03:50]} 19. Qc2 {[%emt 0:02:58]} Qb7 {[%emt 0:07:25]} 20. Nf4 {[%emt 0:05:18]} Ne5 {[%emt 0:09:48]} 21. Rfd1 {[%emt 0:11:05]} Bxg2 {[%emt 0:17:45]} 22. Nxg2 {[%emt 0:00:35]} Nf3+ {[%emt 0:00:06]} 23. Kf1 {[%emt 0:00:25]} Nh2+ {[%emt 0:00:47]} 24. Kg1 {[%emt 0:00:06]} Nf3+ {[%emt 0:00:03]} 25. Kf1 {[%emt 0:00:06]} Nh2+ {[%emt 0:01:18]} 1/2-1/2

[Event "79th ARM-ch 1st League 2018"]
[Site "Yerevan"]
[Date "2018.08.09"]
[Round "1"]
[White "Hayrapetyan, Artavazd R"]
[Black "Babujian, Levon"]
[Result "1-0"]
[ECO "D38"]
[WhiteElo "2371"]
[BlackElo "2459"]
[Annotator "ChessBase"]
[PlyCount "81"]
[EventDate "2018.08.09"]
[EventType "tourn"]
[EventCountry "ARM"]
[SourceTitle "playchess.com"]
[Source "ChessBase"]
[SourceQuality "1"]
[TimeControl "40/5400+30:1800+30"]

1. d4 {[%emt 0:00:00]} Nf6 {[%emt 0:02:09]} 2. c4 {[%emt 0:00:00]} e6 {[%emt 0:01:52]} 3. Nf3 {[%emt 0:05:42]} d5 {[%emt 0:00:19]} 4. Nc3 {[%emt 0:02:39]} Bb4 {[%emt 0:00:15]} 5. e3 {[%emt 0:01:37]} O-O {[%emt 0:00:23]} 6. Bd2 {[%emt 0:04:00]} c5 {[%emt 0:00:35]} 7. a3 {[%emt 0:05:14]} Bxc3 {[%emt 0:00:51]} 8. Bxc3 {[%emt 0:00:06]} Ne4 {[%emt 0:00:42]} 9. Rc1 {[%emt 0:00:19]} b6 {[%emt 0:04:12]} 10. dxc5 {[%emt 0:04:09]} bxc5 {[%emt 0:00:22]} 11. Bd3 {[%emt 0:00:14]} Nxc3 {[%emt 0:00:43]} 12. Rxc3 {[%emt 0:00:06]} Nd7 {[%emt 0:01:47]} 13. cxd5 {[%emt 0:06:20]} exd5 {[%emt 0:00:15]} 14. O-O {[%emt 0:01:29]} Bb7 {[%emt 0:01:41]} 15. Bf5 {[%emt 0:06:03]} Rc8 {[%emt 0:00:38]} 16. Qc2 {[%emt 0:01:47]} c4 {[%emt 0:20:30]} 17. Bxh7+ {[%emt 0:03:21]} Kh8 {[%emt 0:00:05]} 18. Bf5 {[%emt 0:00:41]} g6 {[%emt 0:00:05]} 19. Bxd7 {[%emt 0:01:13]} Qxd7 {[%emt 0:00:04]} 20. Qd2 {[%emt 0:03:30]} Kg7 {[%emt 0:00:59]} 21. Qd4+ {[%emt 0:01:45]} f6 {[%emt 0:00:06]} 22. Qxa7 {[%emt 0:00:43]} Rce8 {[%emt 0:01:24]} 23. Rd1 {[%emt 0:04:23]} Re4 {[%emt 0:05:12]} 24. Rd4 {[%emt 0:07:59]} Qb5 {[%emt 0:01:33]} 25. Rd2 {[%emt 0:08:33]} Rh8 {[%emt 0:08:18]} 26. h3 {[%emt 0:06:16]} Qd7 {[%emt 0:04:14]} 27. Rd4 {[%emt 0:01:35]} Ra8 {[%emt 0:16:11]} 28. Qc5 {[%emt 0:01:47]} Rc8 {[%emt 0:00:28]} 29. Qb4 {[%emt 0:01:05]} Re7 {[%emt 0:00:10]} 30. b3 {[%emt 0:01:16]} Qe8 {[%emt 0:06:59]} 31. bxc4 {[%emt 0:02:24]} Rb8 {[%emt 0:00:07]} 32. Rb3 {[%emt 0:01:13]} dxc4 {[%emt 0:00:12]} 33. Rxc4 {[%emt 0:01:56]} Rd7 {[%emt 0:01:14]} 34. Rd4 {[%emt 0:00:47]} Rc7 {[%emt 0:00:06]} 35. Rc3 {[%emt 0:04:04]} Bc6 {[%emt 0:03:58]} 36. Qd6 {[%emt 0:00:59]} Rbc8 {[%emt 0:03:23]} 37. Qg3 {[%emt 0:00:18]} Rb7 {[%emt 0:03:01]} 38. Rdc4 {[%emt 0:00:11]} Rb1+ {[%emt 0:00:20]} 39. Kh2 {[%emt 0:00:05]} Rb5 {[%emt 0:04:26]} 40. e4 {[%emt 0:00:00]} Rh5 {[%emt 0:00:00]} 41. Qd6 {[%emt 0:02:46]} 1-0

[Event "79th ARM-ch 1st League 2018"]
[Site "Yerevan"]
[Date "2018.08.09"]
[Round "1"]
[White "Hoghmrtsyan, Artur"]
[Black "Sargsyan, Tigran R"]
[Result "1/2-1/2"]
[ECO "D10"]
[WhiteElo "2157"]
[BlackElo "2136"]
[Annotator "NA"]
[PlyCount "93"]
[EventDate "2018.08.09"]
[EventType "tourn"]
[EventCountry "ARM"]
[SourceTitle "playchess.com"]
[Source "ChessBase"]
[SourceQuality "1"]
[TimeControl "40/5400+30:1800+30"]

1. d4 {[%emt 0:00:00]} d5 {[%emt 0:00:05]} 2. c4 {[%emt 0:00:00]} c6 {[%emt 0:00:38]} 3. cxd5 {[%emt 0:00:12]} cxd5 {[%emt 0:00:08]} 4. Bf4 {[%emt 0:00:23]} Nc6 {[%emt 0:00:36]} 5. e3 {[%emt 0:00:25]} Nf6 {[%emt 0:00:23]} 6. Nc3 {[%emt 0:00:35]} Bf5 {[%emt 0:00:59]} 7. Qb3 {[%emt 0:04:14]} Na5 {[%emt 0:00:43]} 8. Qa4+ {[%emt 0:00:20]} Bd7 {[%emt 0:00:22]} 9. Qc2 {[%emt 0:00:09]} e6 {[%emt 0:00:37]} 10. Nf3 {[%emt 0:05:20]} Rc8 {[%emt 0:08:27]} 11. Bd3 {[%emt 0:02:36]} b5 {[%emt 0:01:32]} 12. a3 {[%emt 0:02:35]} Be7 {[%emt 0:00:41]} 13. O-O {[%emt 0:01:26]} O-O {[%emt 0:00:55]} 14. Ne5 {[%emt 0:05:25]} Nc4 {[%emt 0:02:36]} 15. Rfc1 {[%emt 0:01:36]} a5 {[%emt 0:03:05]} 16. Qe2 {[%emt 0:02:06]} a4 {[%emt 0:02:02]} 17. h3 {[%emt 0:17:45]} Be8 {[%emt 0:04:13]} 18. Bg5 {[%emt 0:10:57]} Nd7 {[%emt 0:11:31]} 19. Bxe7 {[%emt 0:02:29]} Qxe7 {[%emt 0:00:15]} 20. Nxd7 {[%emt 0:10:53]} Qxd7 {[%emt 0:20:28]} 21. Rc2 {[%emt 0:14:28]} f6 {[%emt 0:11:11]} 22. Rac1 {[%emt 0:04:20]} Bg6 {[%emt 0:04:27]} 23. Bxg6 {[%emt 0:00:19]} hxg6 {[%emt 0:00:08]} 24. Qd3 {[%emt 0:00:26]} Kf7 {[%emt 0:02:33]} 25. Rd1 {[%emt 0:06:21]} Rfd8 {[%emt 0:03:25]} 26. Ne2 {[%emt 0:01:46]} Rh8 {[%emt 0:11:55]} 27. f4 {[%emt 0:03:50]} Qd6 {[%emt 0:02:18]} 28. Nc3 {[%emt 0:01:20]} Rb8 {[%emt 0:01:33]} 29. Na2 {[%emt 0:01:19]} g5 {[%emt 0:02:23]} 30. Rf1 {[%emt 0:00:28]} gxf4 {[%emt 0:00:49]} 31. Rxf4 {[%emt 0:00:15]} g5 {[%emt 0:00:38]} 32. Rf3 {[%emt 0:01:02]} g4 {[%emt 0:00:46]} 33. hxg4 {[%emt 0:00:18]} Qh2+ {[%emt 0:00:21]} 34. Kf2 {[%emt 0:00:10]} Rbg8 {[%emt 0:00:59]} 35. Qf1 {[%emt 0:00:57]} Rxg4 {[%emt 0:00:54]} 36. Ke1 {[%emt 0:00:31]} Qh4+ {[%emt 0:01:20]} 37. Rcf2 {[%emt 0:00:20]} f5 {[%emt 0:00:40]} 38. Rh3 {[%emt 0:00:24]} Qf6 {[%emt 0:01:39]} 39. Rxh8 {[%emt 0:00:22]} Qxh8 {[%emt 0:00:35]} 40. Rxf5+ {[%emt 0:00:00]} exf5 {[%emt 0:00:00]} 41. Qxf5+ {[%emt 0:03:58]} Ke7 {[%emt 0:07:47]} 42. Qxg4 {[%emt 0:00:20]} Qh1+ {[%emt 0:02:24]} 43. Kf2 {[%emt 0:02:28]} Qb1 {[%emt 0:03:48]} 44. Qg5+ {[%emt 0:08:10]} Kf8 {[%emt 0:01:19]} 45. Qd8+ {[%emt 0:10:28]} Kg7 {[%emt 0:00:39]} 46. Qe7+ {[%emt 0:00:40]} Kg8 {[%emt 0:00:44]} 47. Qg5+ {Kg7 Qxg7} 1/2-1/2

[Event "79th ARM-ch 1st League 2018"]
[Site "Yerevan"]
[Date "2018.08.10"]
[Round "2"]
[White "Davtyan, Artur"]
[Black "Sargsyan, Tigran R"]
[Result "1-0"]
[ECO "D11"]
[WhiteElo "2353"]
[BlackElo "2136"]
[Annotator "NA"]
[PlyCount "73"]
[EventDate "2018.08.09"]
[EventType "tourn"]
[EventCountry "ARM"]
[SourceTitle "playchess.com"]
[Source "ChessBase"]
[SourceQuality "1"]
[TimeControl "40/5400+30:1800+30"]

1. d4 {[%emt 0:00:00]} d5 {[%emt 0:00:00]} 2. c4 {[%emt 0:00:00]} c6 {[%emt 0:00:00]} 3. Nf3 {[%emt 0:00:00]} Nf6 {[%emt 0:00:00]} 4. e3 {[%emt 0:00:00]} Bg4 {[%emt 0:01:05]} 5. Qb3 {[%emt 0:00:07]} Qb6 {[%emt 0:00:43]} 6. Nc3 {[%emt 0:03:09]} e6 {[%emt 0:01:15]} 7. Nh4 {[%emt 0:01:37]} Bh5 {[%emt 0:01:11]} 8. h3 {[%emt 0:00:37]} Na6 {[%emt 0:08:05]} 9. g4 {[%emt 0:05:13]} Qxb3 {[%emt 0:01:17]} 10. axb3 {[%emt 0:00:12]} Nb4 {[%emt 0:00:25]} 11. Ke2 {[%emt 0:24:19]} Bg6 {[%emt 0:03:09]} 12. Nxg6 {[%emt 0:00:14]} hxg6 {[%emt 0:00:10]} 13. Bg2 {[%emt 0:00:37]} g5 {[%emt 0:05:22]} 14. Bd2 {[%emt 0:00:52]} Be7 {[%emt 0:26:09]} 15. Ra4 {[%emt 0:01:15]} Nd7 {[%emt 0:04:09]} 16. Rha1 {[%emt 0:04:59]} Na6 {[%emt 0:03:47]} 17. c5 {[%emt 0:01:22]} O-O-O {[%emt 0:22:24]} 18. b4 {[%emt 0:01:17]} Ndb8 {[%emt 0:03:31]} 19. Be1 {[%emt 0:26:43]} Bf6 {[%emt 0:05:38]} 20. f3 {[%emt 0:19:12]} e5 {[%emt 0:02:07]} 21. Kd3 {[%emt 0:01:08]} Nc7 {[%emt 0:01:52]} 22. Bg3 {[%emt 0:03:55]} exd4 {[%emt 0:00:26]} 23. exd4 {[%emt 0:00:05]} Ne6 {[%emt 0:03:03]} 24. Rxa7 {[%emt 0:01:36]} Na6 {[%emt 0:03:25]} 25. Ra4 {[%emt 0:03:26]} Rhe8 {[%emt 0:02:37]} 26. b5 {[%emt 0:00:33]} Naxc5+ {[%emt 0:00:27]} 27. dxc5 {[%emt 0:00:01]} Nxc5+ {[%emt 0:00:01]} 28. Kc2 {[%emt 0:00:53]} Nxa4 {[%emt 0:00:44]} 29. Nxa4 {[%emt 0:00:08]} Bd4 {[%emt 0:00:27]} 30. b6 {[%emt 0:00:58]} Re2+ {[%emt 0:00:25]} 31. Kd3 {[%emt 0:00:00]} Rxg2 {[%emt 0:00:36]} 32. Kxd4 {[%emt 0:00:01]} Rd2+ {[%emt 0:00:53]} 33. Kc3 {[%emt 0:00:37]} Rd1 {[%emt 0:00:13]} 34. Kc2 {[%emt 0:00:27]} Rd4 {[%emt 0:00:12]} 35. b3 {[%emt 0:00:01]} Kd7 {[%emt 0:01:08]} 36. Nc5+ {[%emt 0:00:01]} Ke8 {[%emt 0:00:08]} 37. Nxb7 {[%emt 0:00:07]} 1-0

[Event "79th ARM-ch 1st League 2018"]
[Site "Yerevan"]
[Date "2018.08.10"]
[Round "2"]
[White "Poghosyan, Suren"]
[Black "Sargsyan, Shant"]
[Result "1/2-1/2"]
[ECO "D93"]
[WhiteElo "2301"]
[BlackElo "2472"]
[Annotator "ChessBase"]
[PlyCount "53"]
[EventDate "2018.08.09"]
[EventType "tourn"]
[EventCountry "ARM"]
[SourceTitle "playchess.com"]
[Source "ChessBase"]
[SourceQuality "1"]
[TimeControl "40/5400+30:1800+30"]

1. d4 {[%emt 0:00:00]} Nf6 {[%emt 0:00:23]} 2. c4 {[%emt 0:00:21]} g6 {[%emt 0:00:14]} 3. Nc3 {[%emt 0:02:56]} d5 {[%emt 0:00:19]} 4. Nf3 {[%emt 0:00:16]} Bg7 {[%emt 0:00:22]} 5. Bf4 {[%emt 0:01:20]} O-O {[%emt 0:01:04]} 6. e3 {[%emt 0:00:39]} c5 {[%emt 0:01:54]} 7. dxc5 {[%emt 0:05:38]} Ne4 {[%emt 0:00:33]} 8. Rc1 {[%emt 0:05:38]} Nd7 {[%emt 0:06:15]} 9. cxd5 {[%emt 0:04:27]} Qa5 {[%emt 0:02:01]} 10. Nd4 {[%emt 0:15:34]} Nxc3 {[%emt 0:00:38]} 11. bxc3 {[%emt 0:14:04]} Nxc5 {[%emt 0:01:16]} 12. Bc4 {[%emt 0:06:14]} Bd7 {[%emt 0:01:22]} 13. O-O {[%emt 0:09:18]} Na4 {[%emt 0:00:41]} 14. Qb3 {[%emt 0:07:30]} Nb6 {[%emt 0:00:57]} 15. Bb5 {[%emt 0:02:26]} Bxd4 {[%emt 0:00:36]} 16. Bxd7 {[%emt 0:00:09]} Bf6 {[%emt 0:00:05]} 17. Bc7 {[%emt 0:08:06]} Qxd5 {[%emt 0:01:41]} 18. Rfd1 {[%emt 0:00:28]} Qc5 {[%emt 0:05:06]} 19. Bxb6 {[%emt 0:01:20]} axb6 {[%emt 0:00:18]} 20. a4 {[%emt 0:00:16]} e6 {[%emt 0:10:25]} 21. Rd3 {[%emt 0:02:59]} Rfd8 {[%emt 0:07:00]} 22. Rcd1 {[%emt 0:00:53]} Kg7 {[%emt 0:01:06]} 23. g3 {[%emt 0:02:41]} h5 {[%emt 0:00:52]} 24. h4 {[%emt 0:02:12]} Be5 {[%emt 0:07:49]} 25. Bb5 {[%emt 0:02:08]} Rd6 {[%emt 0:05:00]} 26. Rxd6 {[%emt 0:02:29]} Bxd6 {[%emt 0:00:12]} 27. Qc4 {[%emt 0:00:27]} 1/2-1/2

[Event "79th ARM-ch 1st League 2018"]
[Site "Yerevan"]
[Date "2018.08.10"]
[Round "2"]
[White "Mkrtchyan, Sargis R"]
[Black "Hayrapetyan, Artavazd R"]
[Result "0-1"]
[ECO "E10"]
[WhiteElo "2239"]
[BlackElo "2371"]
[Annotator "NA"]
[PlyCount "58"]
[EventDate "2018.08.09"]
[EventType "tourn"]
[EventCountry "ARM"]
[SourceTitle "playchess.com"]
[Source "ChessBase"]
[SourceQuality "1"]
[TimeControl "40/5400+30:1800+30"]

1. d4 {[%emt 0:00:00]} Nf6 {[%emt 0:00:10]} 2. c4 {[%emt 0:00:00]} e6 {[%emt 0:02:09]} 3. Nf3 {[%emt 0:00:06]} d5 {[%emt 0:01:33]} 4. g3 {[%emt 0:04:06]} a6 {[%emt 0:03:19]} 5. Bg2 {[%emt 0:05:32]} dxc4 {[%emt 0:00:32]} 6. O-O {[%emt 0:02:32]} b5 {[%emt 0:10:27]} 7. Ne5 {[%emt 0:07:16]} Nd5 {[%emt 0:01:55]} 8. a4 {[%emt 0:04:25]} Bb7 {[%emt 0:11:10]} 9. axb5 {[%emt 0:02:04]} axb5 {[%emt 0:00:06]} 10. Rxa8 {[%emt 0:00:07]} Bxa8 {[%emt 0:00:06]} 11. e4 {[%emt 0:00:11]} Nf6 {[%emt 0:00:45]} 12. Nc3 {[%emt 0:00:49]} c6 {[%emt 0:04:09]} 13. Bg5 {[%emt 0:19:09]} Be7 {[%emt 0:08:50]} 14. Qa1 {[%emt 0:03:31]} Bb7 {[%emt 0:01:13]} 15. Qa7 {[%emt 0:05:18]} Qc8 {[%emt 0:04:16]} 16. d5 {[%emt 0:11:13]} Bd6 {[%emt 0:29:27]} 17. Nxf7 {[%emt 0:10:05]} Kxf7 {[%emt 0:00:57]} 18. dxe6+ {[%emt 0:00:06]} Ke7 {[%emt 0:01:33]} 19. Rd1 {[%emt 0:05:22]} Rd8 {[%emt 0:05:10]} 20. Rxd6 {[%emt 0:08:50]} Rxd6 {[%emt 0:00:12]} 21. e5 {[%emt 0:00:23]} Rxe6 {[%emt 0:00:08]} 22. exf6+ {[%emt 0:00:57]} gxf6 {[%emt 0:02:58]} 23. Be3 {[%emt 0:01:11]} Nd7 {[%emt 0:01:55]} 24. Ne4 {[%emt 0:05:56]} Qa8 {[%emt 0:04:42]} 25. Qd4 {[%emt 0:02:10]} Qa1+ {[%emt 0:00:04]} 26. Bf1 {[%emt 0:00:04]} c5 {[%emt 0:00:53]} 27. Nxc5 {[%emt 0:00:40]} Ne5 {[%emt 0:00:23]} 28. Qf4 {[%emt 0:01:01]} Nf3+ {[%emt 0:00:25]} 29. Kg2 {[%emt 0:00:03]} Nd2+ {[%emt 0:00:08]} 0-1

[Event "79th ARM-ch 1st League 2018"]
[Site "Yerevan"]
[Date "2018.08.10"]
[Round "2"]
[White "Martirosyan, Garik"]
[Black "Hayrapetyan, Hovik"]
[Result "0-1"]
[ECO "E21"]
[WhiteElo "2145"]
[BlackElo "2439"]
[Annotator "NA"]
[PlyCount "130"]
[EventDate "2018.08.09"]
[EventType "tourn"]
[EventCountry "ARM"]
[SourceTitle "playchess.com"]
[Source "ChessBase"]
[SourceQuality "1"]
[TimeControl "40/5400+30:1800+30"]

1. d4 {[%emt 0:00:00]} Nf6 {[%emt 0:00:00]} 2. c4 {[%emt 0:00:00]} e6 {[%emt 0:00:00]} 3. Nc3 {[%emt 0:00:33]} Bb4 {[%emt 0:02:38]} 4. Nf3 {[%emt 0:01:33]} b6 {[%emt 0:00:39]} 5. e3 {[%emt 0:00:26]} Bb7 {[%emt 0:00:47]} 6. Bd3 {[%emt 0:00:37]} O-O {[%emt 0:03:03]} 7. O-O {[%emt 0:00:44]} Bxc3 {[%emt 0:00:57]} 8. bxc3 {[%emt 0:00:09]} d6 {[%emt 0:01:49]} 9. Nd2 {[%emt 0:02:04]} e5 {[%emt 0:02:27] LiveBook: 38 Games} 10. f3 {[%emt 0:02:25]} Qe7 {[%emt 0:01:45]} 11. e4 {[%emt 0:05:11]} c5 {[%emt 0:06:44]} 12. Rf2 {[%emt 0:06:34]} cxd4 {[%emt 0:00:58]} 13. cxd4 {[%emt 0:00:05]} Nc6 {[%emt 0:03:10]} 14. Nb3 {[%emt 0:12:43]} Rfd8 $16 {[%emt 0:10:32]} 15. Be3 {[%emt 0:09:30]} Rac8 {[%emt 0:00:28]} 16. d5 {[%emt 0:08:05]} Nb4 {[%emt 0:02:29]} 17. Bf1 {[%emt 0:00:18]} Nd7 {[%emt 0:00:33]} 18. a3 {[%emt 0:01:52]} Na6 {[%emt 0:00:09]} 19. a4 {[%emt 0:00:19]} g6 {[%emt 0:17:08]} 20. a5 {[%emt 0:02:23]} f5 {[%emt 0:01:29]} 21. exf5 {[%emt 0:05:36]} gxf5 {[%emt 0:00:22]} 22. Rb2 {[%emt 0:01:37]} Rc7 {[%emt 0:02:11]} 23. axb6 {[%emt 0:04:58]} axb6 {[%emt 0:00:21]} 24. Nd2 {[%emt 0:08:01]} Bc8 {[%emt 0:03:25]} 25. Nb1 {[%emt 0:04:17]} Nab8 {[%emt 0:10:56]} 26. Nc3 {[%emt 0:02:22]} Ba6 {[%emt 0:03:14]} 27. Nb5 {[%emt 0:00:43]} Bxb5 {[%emt 0:00:29]} 28. Rxb5 {[%emt 0:00:12]} Nc5 {[%emt 0:01:46]} 29. Rxb6 {[%emt 0:01:12]} Nbd7 {[%emt 0:00:18]} 30. Rb5 {[%emt 0:00:51]} Rdc8 {[%emt 0:01:46]} 31. Rba5 {[%emt 0:01:51]} Rb7 {[%emt 0:02:29]} 32. Ra7 {[%emt 0:00:49]} Rcb8 {[%emt 0:00:27]} 33. Qe1 {[%emt 0:02:05]} Qf6 {[%emt 0:04:41]} 34. Qg3+ {[%emt 0:02:09]} Kf7 {[%emt 0:01:54]} 35. Qh3 {[%emt 0:00:52]} Qg6 {[%emt 0:00:31]} 36. Qh4 {[%emt 0:00:51]} f4 {[%emt 0:00:55]} 37. Bf2 {[%emt 0:04:25]} Nb3 {[%emt 0:02:52]} 38. R1a3 {[%emt 0:03:39]} Nd2 {[%emt 0:00:38]} 39. Be2 {[%emt 0:03:28]} h6 {[%emt 0:05:11]} 40. Be1 {[%emt 0:00:00]} Nb3 {[%emt 0:00:00]} 41. Qh3 {[%emt 0:09:18]} Ndc5 {[%emt 0:05:58]} 42. Rxb7+ {[%emt 0:11:53]} Rxb7 {[%emt 0:00:06]} 43. Ra8 {[%emt 0:00:07]} Rc7 {[%emt 0:10:48]} 44. Qh4 {[%emt 0:03:33]} Qg5 {[%emt 0:01:55]} 45. Rh8 {[%emt 0:05:10]} Kg7 {[%emt 0:00:24]} 46. Qxg5+ {[%emt 0:00:41]} hxg5 {[%emt 0:00:04]} 47. Ra8 {[%emt 0:00:13]} Nd4 {[%emt 0:01:51]} 48. Kf2 {[%emt 0:00:40]} Rb7 {[%emt 0:00:26]} 49. Ra2 {[%emt 0:00:10]} Rb3 {[%emt 0:00:16]} 50. Ba5 {[%emt 0:00:52]} g4 {[%emt 0:02:11]} 51. Rd2 {[%emt 0:01:53]} Nxe2 {[%emt 0:07:14]} 52. Kxe2 {[%emt 0:00:19]} Re3+ {[%emt 0:00:09]} 53. Kd1 {[%emt 0:00:39]} Nb3 {[%emt 0:01:05]} 54. Ra2 {[%emt 0:01:09]} gxf3 {[%emt 0:00:14]} 55. gxf3 {[%emt 0:00:05]} Rxf3 {[%emt 0:00:12]} 56. Bc7 {[%emt 0:00:22]} Nd4 {[%emt 0:00:40]} 57. Rg2+ {[%emt 0:00:32]} Kf6 {[%emt 0:00:05]} 58. Bxd6 {[%emt 0:00:31]} e4 {[%emt 0:02:43]} 59. Ke1 {[%emt 0:03:26]} Re3+ {[%emt 0:04:30]} 60. Kf1 {[%emt 0:01:50]} f3 {[%emt 0:00:06]} 61. Rg4 {[%emt 0:00:35]} Nf5 {[%emt 0:00:49]} 62. c5 {[%emt 0:00:44]} Re2 {[%emt 0:00:29]} 63. Rf4 {[%emt 0:00:13]} Kg5 {[%emt 0:02:37]} 64. Kg1 {[%emt 0:00:39]} Nxd6 {[%emt 0:00:35]} 65. cxd6 {[%emt 0:00:10]} Kxf4 {[%emt 0:00:06]} 0-1

[Event "79th ARM-ch 1st League 2018"]
[Site "Yerevan"]
[Date "2018.08.11"]
[Round "3"]
[White "Harutyunian, Tigran K."]
[Black "Davtyan, Artur"]
[Result "1-0"]
[ECO "A06"]
[WhiteElo "2504"]
[BlackElo "2353"]
[Annotator "RC"]
[PlyCount "113"]
[EventDate "2018.08.09"]
[EventType "tourn"]
[EventCountry "ARM"]
[SourceTitle "playchess.com"]
[Source "ChessBase"]
[SourceQuality "1"]
[TimeControl "40/5400+30:1800+30"]

1. Nf3 {[%emt 0:00:28]} d5 {[%emt 0:00:00]} 2. g3 {[%emt 0:00:11]} Nd7 {[%emt 0:01:47]} 3. d4 {[%emt 0:03:59]} Ngf6 {[%emt 0:00:23]} 4. Bg2 {[%emt 0:00:56]} b5 {[%emt 0:01:26]} 5. O-O {[%emt 0:03:37]} e6 {[%emt 0:03:28]} 6. Nbd2 {[%emt 0:04:26]} Bb7 {[%emt 0:02:43]} 7. e4 {[%emt 0:04:45]} Nxe4 {[%emt 0:05:08]} 8. Nxe4 {[%emt 0:00:27]} dxe4 {[%emt 0:00:02]} 9. Ng5 {[%emt 0:00:46]} Nf6 {[%emt 0:03:00]} 10. Qe2 {[%emt 0:00:15]} Qd5 {[%emt 0:12:53]} 11. Re1 {[%emt 0:00:57]} Be7 {[%emt 0:07:13]} 12. a4 {[%emt 0:36:39]} a6 {[%emt 0:02:01]} 13. Nxe4 {[%emt 0:01:44]} Nxe4 {[%emt 0:00:43]} 14. Bxe4 {[%emt 0:00:06]} Qxe4 {[%emt 0:00:03]} 15. Qxe4 {[%emt 0:00:05]} Bxe4 {[%emt 0:00:04]} 16. Rxe4 {[%emt 0:00:07]} Kd7 {[%emt 0:00:04]} 17. Bd2 {[%emt 0:02:04]} Rhb8 {[%emt 0:03:02]} 18. b3 {[%emt 0:03:11]} Bd6 {[%emt 0:17:20]} 19. Kf1 {[%emt 0:00:22]} h5 {[%emt 0:01:34]} 20. h4 {[%emt 0:01:01]} Kc6 {[%emt 0:07:29]} 21. Ke2 {[%emt 0:01:46]} Kd5 {[%emt 0:04:09]} 22. Kd3 {[%emt 0:00:07]} c5 {[%emt 0:02:47]} 23. dxc5 {[%emt 0:02:04]} Bxc5 {[%emt 0:00:11]} 24. Be3 {[%emt 0:00:54]} g6 {[%emt 0:13:14]} 25. Bxc5 {[%emt 0:06:43]} Kxc5 {[%emt 0:00:04]} 26. b4+ {[%emt 0:00:06]} Kc6 {[%emt 0:00:20]} 27. c4 {[%emt 0:00:25]} bxc4+ {[%emt 0:08:57]} 28. Rxc4+ {[%emt 0:00:14]} Kd7 {[%emt 0:01:27]} 29. Rac1 {[%emt 0:01:05]} Rb7 {[%emt 0:00:02]} 30. Rd4+ {[%emt 0:00:47]} Ke7 {[%emt 0:01:55]} 31. Rc6 {[%emt 0:00:02]} e5 {[%emt 0:01:25]} 32. Rdc4 {[%emt 0:01:07]} Rd8+ {[%emt 0:00:34]} 33. Ke4 {[%emt 0:00:44]} Rdb8 {[%emt 0:00:28]} 34. Kxe5 {[%emt 0:03:22]} Rxb4 {[%emt 0:00:30]} 35. Rxb4 {[%emt 0:00:07]} Rxb4 {[%emt 0:00:02]} 36. Rxa6 {[%emt 0:00:15]} Rb2 {[%emt 0:00:44]} 37. Ra7+ {[%emt 0:01:16]} Kf8 {[%emt 0:00:47]} 38. f4 {[%emt 0:02:33]} Rb3 {[%emt 0:00:30]} 39. a5 {[%emt 0:00:53]} Re3+ {[%emt 0:00:30]} 40. Kd5 {[%emt 0:00:00]} Rxg3 {[%emt 0:00:00]} 41. Rb7 {[%emt 0:05:44]} Ra3 {[%emt 0:15:30]} 42. Rb5 {[%emt 0:00:06]} Ra4 {[%emt 0:03:39]} 43. Kc5 {[%emt 0:01:41]} Rxf4 {[%emt 0:05:16]} 44. a6 {[%emt 0:01:04]} Rxh4 {[%emt 0:02:09]} 45. a7 {[%emt 0:01:24]} Ra4 {[%emt 0:00:10]} 46. Rb8+ {[%emt 0:00:05]} Ke7 {[%emt 0:05:45]} 47. a8=Q {[%emt 0:00:19]} Rxa8 {[%emt 0:00:01]} 48. Rxa8 {[%emt 0:00:07]} Ke6 {[%emt 0:01:46]} 49. Kd4 {[%emt 0:00:17]} Kf5 {[%emt 0:00:23]} 50. Ke3 {[%emt 0:04:11]} Kg4 {[%emt 0:00:22]} 51. Ra1 {[%emt 0:00:28]} h4 {[%emt 0:00:58]} 52. Rg1+ {[%emt 0:00:23]} Kh5 {[%emt 0:00:20]} 53. Kf4 {[%emt 0:08:44]} f6 {[%emt 0:00:01]} 54. Rh1 {[%emt 0:00:39]} g5+ {[%emt 0:00:37]} 55. Kf5 {[%emt 0:00:20]} g4 {[%emt 0:00:06]} 56. Ra1 {[%emt 0:00:06]} h3 {[%emt 0:00:19]} 57. Ra8 {[%emt 0:00:07]} 1-0